lending/lending_fUSD_20240120
["ID","MTS","AMOUNT","RATE_DAILY","PERIOD"]
[312323639,1705775445566,-151.0,0.00030991,7]
[312323641,1705775445576,-229.251204,0.00030991,7]
[312323643,1705775445585,-151.0,0.00030991,7]
[312323645,1705775445595,-151.0,0.00030991,7]
[312323647,1705775445604,-297.790666,0.00030991,7]
[312323649,1705775445613,-297.790666,0.00030991,7]
[312323651,1705775445623,-369.513576,0.00030991,7]
[312323653,1705775445633,-369.513576,0.00030991,7]
[312323655,1705775445643,-151.0,0.00030991,7]
[312323657,1705775445652,-157.214768,0.00030991,7]
[312323659,1705775445662,-151.0,0.00030991,7]
[312323661,1705775445672,-220.195027,0.00030991,7]
[312323663,1705775445682,-220.195027,0.00030991,7]
[312323665,1705775445692,-1446.432708,0.00030991,7]
[312323667,1705775445705,-1446.432708,0.00030991,7]
[312323670,1705775445715,-151.0,0.00030991,7]
[312323671,1705775445725,-190.177479,0.00030991,7]
[312323674,1705775445735,-160.34504,0.00030991,7]
[312323675,1705775445746,-5419.892644,0.00030991,7]
[312323678,1705775445756,-5419.892644,0.00030991,7]
[312323680,1705775445764,-2459.887998,0.00030991,7]
[312323682,1705775445776,-2459.887998,0.00030991,7]
[312323684,1705775445786,-58000.0,0.00031,3]
[312323686,1705775445796,-500.0,0.00031,3]
[312323688,1705775445805,-58000.0,0.00031,3]
[312323690,1705775445815,-151.45839625,0.00031046,2]
[312323692,1705775445825,-153.84,0.0003105,2]
[312323694,1705775445835,-800.0,0.00031142,7]
[312323696,1705775445844,-167.36,0.00031377,2]
[312323698,1705775445854,-17431.0,0.000314,5]
[312323700,1705775445863,-255.8,0.00031435,2]
[312323702,1705775445873,-166.71,0.00031435,2]
[312323704,1705775445883,-254.39,0.00031435,2]
[312323706,1705775445892,-1633.40841484,0.00031443,5]
[312323708,1705775445902,-1000.0,0.000315,2]
[312323711,1705775445912,-8000.0,0.000315,2]
[312323713,1705775445922,-1374.32,0.00031506,2]
[312323715,1705775445931,-225.936,0.00031506,7]
[312323717,1705775445940,-225.936,0.00031506,7]
[312323719,1705775445950,-175.860325,0.00031506,7]
[312323721,1705775445959,-175.860325,0.00031506,7]
[312323724,1705775445968,-151.0,0.00031506,7]
[312323727,1705775445978,-151.0,0.00031506,7]
[312323730,1705775445987,-151.0,0.00031506,7]
[312323733,1705775445998,-151.0,0.00031506,7]
[312323736,1705775446008,-748.44,0.00031507,2]
[312323739,1705775446018,-155.0,0.00031507,2]
[312323742,1705775446028,-155.0,0.000316,2]
[312323745,1705775446037,-1000.0,0.00031621,2]
[312323747,1705775446047,-263.2,0.00031644,2]
[312323749,1705775446057,-10860.0,0.00031659,5]
[312323751,1705775446067,-151.0,0.00031659,7]
[312323754,1705775446076,-151.0,0.00031659,7]
[312323757,1705775446086,-500.0,0.000317,3]
[312323760,1705775446095,-150.0,0.00031723,2]
[312323764,1705775446105,-8899.03431471,0.00031764,3]
[312323767,1705775446115,-31375.83759417,0.00031797,2]
[312323770,1705775446125,-229.85039959,0.000318,2]
[312323773,1705775446134,-151.0,0.000318,7]
[312323776,1705775446144,-581.01846,0.000318,7]
[312323779,1705775446154,-581.01846,0.000318,7]
[312323782,1705775446164,-393.169667,0.000318,7]
[312323785,1705775446175,-393.169667,0.000318,7]
[312323788,1705775446185,-151.0,0.000318,7]
[312323791,1705775446195,-208.779874,0.000318,7]
[312323794,1705775446205,-208.779874,0.000318,7]
[312323798,1705775446215,-368377.548554,0.000318,3]
[312323801,1705775446225,-243.15262924,0.00031846,2]
[312323804,1705775446234,-745.938325,0.00031846,7]
[312323807,1705775446244,-745.938325,0.00031846,7]
[312323809,1705775446253,-478.285678,0.00031846,7]
[312323811,1705775446263,-478.285678,0.00031846,7]
[312323813,1705775446273,-190.436654,0.00031846,7]
[312323815,1705775446283,-190.436654,0.00031846,7]
[312323817,1705775446293,-5000.0,0.0003189,2]
[312323819,1705775446303,-153.84,0.00031963,2]
[312323821,1705775446313,-298.08959021,0.00032,4]
[312323823,1705775446323,-13080.03973811,0.00032,4]
[312323825,1705775446332,-151.45839625,0.00032064,2]
[312323827,1705775446342,-155.0,0.00032069,4]
[312323830,1705775446353,-357.87420369,0.00032138,2]
[312323833,1705775446363,-150.0,0.00032323,7]
[312323836,1705775446373,-150.0,0.00032323,7]
[312323839,1705775446382,-207.0,0.00032417,18]
[312323842,1705775446392,-657.81618824,0.000325,2]
[312323845,1705775446402,-150.0,0.00032516,2]
[312323848,1705775446411,-800.0,0.00032544,7]
[312323851,1705775446421,-155.0,0.000327,2]
[312323854,1705775446431,-500.0,0.000327,3]
[312323857,1705775446441,-383.38,0.00032774,2]
[312323860,1705775446450,-243.15262924,0.00032819,2]
[312323863,1705775446460,-2274.0,0.00032845,2]
[312323865,1705775446470,-13481.025,0.00032845,2]
[312323867,1705775446480,-2907.0,0.00032845,2]
[312323869,1705775446490,-836.0,0.00032845,2]
[312323871,1705775446501,-1455.363,0.00032845,2]
[312323873,1705775446510,-944.0,0.00032845,2]
[312323875,1705775446520,-1030.0,0.00032845,2]
[312323877,1705775446530,-151.0,0.00032845,7]
[312323879,1705775446540,-5419.892644,0.00032845,7]
[312323881,1705775446549,-5419.892644,0.00032845,7]
[312323883,1705775446559,-2459.887998,0.00032845,7]
[312323885,1705775446569,-2459.887998,0.00032845,7]
[312323887,1705775446579,-324.29332273,0.00032876,7]
[312323889,1705775446589,-357.27233836,0.00032876,7]
[312323891,1705775446598,-544.07554709,0.00032876,7]
[312323893,1705775446608,-233.72854516,0.00032876,7]
[312323895,1705775446618,-167.26729293,0.00032876,7]
[312323897,1705775446629,-230.67893352,0.00032876,7]
[312323900,1705775446639,-166.67126618,0.00032876,7]
[312323902,1705775446649,-311.86867497,0.00032876,7]
[312323904,1705775446659,-153.78595568,0.00032876,7]
[312323906,1705775446669,-463.74528623,0.00032876,7]
[312323908,1705775446679,-1374.32,0.00032876,2]
[312323910,1705775446689,-153.84,0.00032877,2]
[312323912,1705775446704,-734.89,0.00032877,15]
[312323914,1705775446714,-155.0,0.00032877,2]
[312323916,1705775446724,-267.14965432,0.00032899,2]
[312323918,1705775446735,-188.6362865,0.00032899,2]
[312323920,1705775446745,-283.285249,0.000329,7]
[312323922,1705775446755,-159.820782,0.000329,7]
[312323924,1705775446765,-159.820782,0.000329,7]
[312323926,1705775446777,-562.09604105,0.000329,2]
[312323928,1705775446787,-200.0,0.000329,2]
[312323930,1705775446797,-4101.90973898,0.000329,2]
[312323933,1705775446807,-225.936,0.000329,7]
[312323935,1705775446817,-225.936,0.000329,7]
[312323937,1705775446826,-175.860325,0.000329,7]
[312323939,1705775446837,-175.860325,0.000329,7]
[312323941,1705775446846,-215.949623,0.000329,7]
[312323943,1705775446856,-151.0,0.000329,7]
[312323945,1705775446865,-151.0,0.000329,7]
[312323947,1705775446875,-151.0,0.000329,7]
[312323949,1705775446885,-369.513576,0.000329,7]
[312323951,1705775446896,-369.513576,0.000329,7]
[312323953,1705775446906,-151.0,0.000329,7]
[312323955,1705775446916,-5403.0,0.000329,2]
[312323958,1705775446927,-151.0,0.000329,7]
[312323960,1705775446936,-750.0,0.000329,2]
[312323962,1705775446946,-8000.0,0.000329,2]
[312323964,1705775446956,-220.195027,0.000329,7]
[312323966,1705775446965,-2000.0,0.000329,2]
[312323968,1705775446975,-220.195027,0.000329,7]
[312323970,1705775446985,-1446.432708,0.000329,7]
[312323972,1705775446996,-1446.432708,0.000329,7]
[312323974,1705775447006,-481.15106883,0.000329,2]
[312323976,1705775447016,-12715.42875134,0.000329,2]
[312323978,1705775447026,-12715.42875134,0.000329,2]
[312323980,1705775447035,-12715.42875134,0.000329,2]
[312323982,1705775447045,-12715.42875134,0.000329,2]
[312323985,1705775447055,-244.0,0.000329,2]
[312323987,1705775447065,-12715.42875134,0.000329,2]
[312323989,1705775447074,-12715.42875134,0.000329,2]
[312323991,1705775447084,-12715.42875134,0.000329,2]
[312323993,1705775447093,-2830.0,0.000329,2]
[312323995,1705775447103,-12715.42875134,0.000329,2]
[312323997,1705775447112,-12715.42875134,0.000329,2]
[312323999,1705775447122,-500.0,0.000329,2]
[312324001,1705775447131,-550.0,0.00033,3]
[312324003,1705775447141,-200.0,0.00033,2]
[312324005,1705775447151,-163.0,0.00033,2]
[312324007,1705775447160,-160.0,0.00033,2]
[312324009,1705775447170,-203.0,0.00033,2]
[312324011,1705775447179,-1000.0,0.00033006,2]
[312324013,1705775447189,-151.45839625,0.00033082,2]
[312324016,1705775447199,-1633.40841484,0.00033171,6]
[312324018,1705775447208,-150.1,0.00033173,2]
[312324020,1705775447218,-150.0,0.00033309,2]
[312324022,1705775447227,-255.8,0.00033453,2]
[312324024,1705775447236,-166.71,0.00033453,2]
[312324026,1705775447246,-254.39,0.00033453,2]
[312324028,1705775447255,-489.8044188,0.000335,4]
[312324030,1705775447265,-2624.94,0.000335,2]
[312324032,1705775447274,-2624.94,0.000335,2]
[312324034,1705775447283,-2624.94,0.000335,2]
[312324036,1705775447292,-2624.94,0.000335,2]
[312324038,1705775447302,-2624.94,0.000335,2]
[312324040,1705775447312,-2624.94,0.000335,2]
[312324042,1705775447321,-2624.94,0.000335,2]
[312324044,1705775447331,-2624.94,0.000335,2]
[312324046,1705775447340,-2624.94,0.000335,2]
[312324049,1705775447350,-2624.94,0.000335,2]
[312324051,1705775447359,-2624.94,0.000335,2]
[312324053,1705775447368,-2624.94,0.000335,2]
[312324055,1705775447378,-2624.94,0.000335,2]
[312324057,1705775447387,-2624.94,0.000335,2]
[312324059,1705775447396,-2624.94,0.000335,2]
[312324061,1705775447405,-2624.94,0.000335,2]
[312324063,1705775447415,-2624.94,0.000335,2]
[312324065,1705775447425,-2624.94,0.000335,2]
[312324067,1705775447435,-2624.94,0.000335,2]
[312324069,1705775447445,-2624.94,0.000335,2]
[312324071,1705775447454,-157.91,0.000336,2]
[312324073,1705775447464,-157.91,0.000336,2]
[312324099,1705775447686,-157.91,0.000336,2]
[312324101,1705775447698,-157.91,0.000336,2]
[312324103,1705775447708,-152.59,0.000336,2]
[312324105,1705775447719,-152.59,0.000336,2]
[312324107,1705775447728,-500.0,0.000337,3]
[312324109,1705775447738,-153.84,0.0003379,2]
[312324111,1705775447749,-243.15262924,0.00033792,2]
[312324113,1705775447758,-172.4063,0.000338,2]
[312324115,1705775447768,-155.0,0.000338,2]
[312324117,1705775447778,-150.0,0.00033858,2]
[312324120,1705775447787,-150.0,0.00033872,2]
[312324122,1705775447799,-433.91206314,0.00033924,2]
[312324124,1705775447809,-3000.0,0.00033924,2]
[312324126,1705775447817,-800.0,0.00033945,15]
[312324128,1705775447827,-150.0,0.00033971,2]
[312324130,1705775447836,-155.41497696,0.00034,4]
[312324132,1705775447844,-500.0,0.00034,2]
[312324134,1705775447854,-506.36803543,0.00034,4]
[312324136,1705775447863,-1000.0,0.00034,4]
[312324138,1705775447872,-150.0,0.00034056,2]
[312324140,1705775447881,-150.0,0.00034069,2]
[312324142,1705775447890,-151.45839625,0.00034101,2]
[312324144,1705775447899,-150.0,0.00034102,2]
[312324146,1705775447908,-150.0,0.00034161,2]
[312324148,1705775447917,-1000.0,0.000342,2]
[312324150,1705775447926,-6565.0,0.000342,2]
[312324152,1705775447935,-1374.32,0.00034246,2]
[312324154,1705775447944,-666.0,0.00034246,2]
[312324156,1705775447953,-155.0,0.00034247,2]
[312324158,1705775447963,-150.0,0.0003426,2]
[312324159,1705775447972,-150.0,0.00034299,2]
[312324161,1705775447981,-6848.86152782,0.00034363,2]
[312324163,1705775447990,-150.0,0.00034453,2]
[312324166,1705775448000,-4425.51274453,0.000345,2]
[312324168,1705775448010,-150.0,0.00034512,2]
[312324170,1705775448019,-1000.0,0.00034515,7]
[312324171,1705775448028,-1000.0,0.00034515,7]
[312324173,1705775448037,-1000.0,0.00034515,7]
[312324175,1705775448046,-1000.0,0.00034515,7]
[312324178,1705775448055,-1000.0,0.00034515,7]
[312324180,1705775448064,-1000.0,0.00034515,7]
[312324182,1705775448074,-1000.0,0.00034515,7]
[312324184,1705775448083,-163.0,0.00034521,2]
[312324186,1705775448092,-150.0,0.00034544,2]
[312324188,1705775448101,-150.0,0.00034576,2]
[312324190,1705775448110,-150.0,0.00034578,2]
[312324192,1705775448119,-150.0,0.00034578,2]
[312324194,1705775448128,-150.0,0.00034622,2]
[312324196,1705775448137,-5000.0,0.00034629,4]
[312324198,1705775448147,-538.62,0.00034649,2]
[312324200,1705775448157,-416.32,0.00034649,2]
[312324202,1705775448166,-4403.99,0.00034649,30]
[312324204,1705775448175,-16369.71,0.00034649,2]
[312324206,1705775448184,-150.0,0.00034677,2]
[312324208,1705775448193,-150.0,0.00034699,2]
[312324210,1705775448203,-500.0,0.000347,3]
[312324212,1705775448212,-150.0,0.000347,2]
[312324214,1705775448221,-153.84,0.00034703,2]
[312324216,1705775448230,-748.44,0.00034703,2]
[312324218,1705775448240,-300.0,0.00034717,2]
[312324220,1705775448251,-243.15262924,0.00034765,2]
[312324222,1705775448260,-1500.0,0.000348,2]
[312324224,1705775448269,-150.0,0.00034806,2]
[312324226,1705775448278,-150.0,0.00034856,2]
[312324228,1705775448287,-1500.0,0.00034869,2]
[312324230,1705775448296,-150.0,0.00034873,2]
[312324232,1705775448305,-150.0,0.00034875,2]
[312324234,1705775448314,-150.0,0.00034886,2]
[312324236,1705775448323,-1500.0,0.00034887,2]
[312324238,1705775448333,-1533.6845424,0.00034895,2]
[312324240,1705775448342,-150.0,0.00034895,2]
[312324242,1705775448351,-8961.38344061,0.000349,4]
[312324244,1705775448360,-155.0,0.000349,2]
[312324246,1705775448369,-151.0,0.000349,7]
[312324248,1705775448379,-466.231375,0.000349,7]
[312324250,1705775448388,-466.231375,0.000349,7]
[312324252,1705775448397,-151.0,0.000349,7]
[312324254,1705775448406,-151.0,0.000349,7]
[312324257,1705775448415,-151.0,0.000349,7]
[312324259,1705775448424,-297.790666,0.000349,7]
[312324260,1705775448433,-297.790666,0.000349,7]
[312324261,1705775448442,-6486.28485793,0.000349,2]
[312324262,1705775448451,-6486.28485786,0.000349,2]
[312324263,1705775448460,-6486.28485786,0.000349,2]
[312324264,1705775448469,-6486.28485786,0.000349,2]
[312324265,1705775448478,-6486.28485786,0.000349,2]
[312324266,1705775448487,-6486.28485786,0.000349,2]
[312324267,1705775448496,-6486.28485786,0.000349,2]
[312324268,1705775448505,-6486.28485786,0.000349,2]
[312324269,1705775448514,-1633.40841484,0.000349,7]
[312324270,1705775448524,-150.0,0.00034915,2]
[312324272,1705775448533,-150.0,0.00034927,2]
[312324274,1705775448542,-1500.0,0.0003494,2]
[312324276,1705775448552,-1500.0,0.00034944,2]
[312324278,1705775448561,-300.0,0.0003497,2]
[312324280,1705775448570,-150.0,0.00034988,2]
[312324282,1705775448580,-62751.67518834,0.00034997,2]
[312324285,1705775448589,-363.4223378,0.00034999,10]
[312324287,1705775448598,-75023.73,0.00034999,2]
[312324289,1705775448607,-267.14965432,0.00034999,2]
[312324291,1705775448617,-188.6362865,0.00034999,2]
[312324293,1705775448626,-155.0,0.00035,2]
[312324294,1705775448635,-615.21134689,0.00035,4]
[312324297,1705775448645,-15747.42472386,0.00035,7]
[312324299,1705775448654,-9638.13833038,0.00035,10]
[312324301,1705775448663,-448.27259389,0.00035,4]
[312324302,1705775448673,-5000.0,0.00035,2]
[312324305,1705775448682,-23500.47032796,0.00035,4]
[312324306,1705775448692,-620.01315922,0.00035,4]
[312324309,1705775448706,-600.0,0.00035,3]
[312324311,1705775448717,-734602.0,0.00035,2]
[312324313,1705775448726,-151.0,0.00035,7]
[312324315,1705775448736,-151.0,0.00035,7]
[312324316,1705775448746,-225.936,0.00035,7]
[312324318,1705775448756,-225.936,0.00035,7]
[312324321,1705775448765,-175.860325,0.00035,7]
[312324323,1705775448776,-175.860325,0.00035,7]
[312324325,1705775448785,-151.0,0.00035,7]
[312324327,1705775448797,-151.0,0.00035,7]
[312324329,1705775448806,-16427.79184818,0.00035,2]
[312324331,1705775448816,-151.0,0.00035,7]
[312324333,1705775448825,-589.45654133,0.00035,2]
[312324335,1705775448834,-151.0,0.00035,7]
[312324337,1705775448843,-151.0,0.00035,7]
[312324338,1705775448852,-151.0,0.00035,7]
[312324339,1705775448862,-466.231375,0.00035,7]
[312324340,1705775448871,-466.231375,0.00035,7]
[312324341,1705775448882,-151.0,0.00035,7]
[312324342,1705775448892,-210.427818,0.00035,7]
[312324343,1705775448901,-151.0,0.00035,7]
[312324344,1705775448911,-297.790666,0.00035,7]
[312324345,1705775448921,-297.790666,0.00035,7]
[312324346,1705775448931,-369.513576,0.00035,7]
[312324347,1705775448940,-369.513576,0.00035,7]
[312324348,1705775448950,-151.0,0.00035,7]
[312324349,1705775448959,-151.0,0.00035,7]
[312324350,1705775448969,-220.195027,0.00035,7]
[312324351,1705775448979,-220.195027,0.00035,7]
[312324352,1705775448989,-1446.432708,0.00035,7]
[312324353,1705775448998,-1446.432708,0.00035,7]
[312324354,1705775449007,-60867.86349596,0.00035,2]
[312324355,1705775449016,-60867.86349596,0.00035,2]
[312324356,1705775449026,-151.0,0.00035,7]
[312324357,1705775449038,-5419.892644,0.00035,7]
[312324358,1705775449047,-5419.892644,0.00035,7]
[312324359,1705775449057,-2459.887998,0.00035,7]
[312324360,1705775449067,-2459.887998,0.00035,7]
[312324361,1705775449077,-3000.0,0.00035,2]
[312324362,1705775449086,-745.938325,0.00035,7]
[312324363,1705775449095,-745.938325,0.00035,7]
[312324364,1705775449105,-745.938325,0.00035,7]
[312324365,1705775449114,-745.938325,0.00035,7]
[312324366,1705775449123,-478.285678,0.00035,7]
[312324367,1705775449133,-478.285678,0.00035,7]
[312324368,1705775449143,-478.285678,0.00035,7]
[312324369,1705775449153,-478.285678,0.00035,7]
[312324370,1705775449163,-190.436654,0.00035,7]
[312324372,1705775449172,-190.436654,0.00035,7]
[312324373,1705775449182,-190.436654,0.00035,7]
[312324374,1705775449192,-190.436654,0.00035,7]
[312324376,1705775449202,-200.0,0.00035,2]
[312324378,1705775449211,-1000.0,0.00035,120]
[312324380,1705775449221,-150.0,0.00035003,2]
[312324382,1705775449230,-150.0,0.00035013,2]
[312324384,1705775449239,-150.0,0.00035017,2]
[312324386,1705775449249,-383.38,0.00035038,2]
[312324388,1705775449259,-150.0,0.00035041,2]
[312324390,1705775449268,-150.0,0.0003505,2]
[312324392,1705775449277,-1500.0,0.00035055,2]
[312324394,1705775449286,-150.0,0.00035057,2]
[312324396,1705775449296,-300.0,0.00035074,2]
[312324398,1705775449305,-150.0,0.00035081,2]
[312324400,1705775449317,-150.0,0.00035097,2]
[312324401,1705775449326,-1000.0,0.000351,20]
[312324402,1705775449338,-151.45839625,0.00035119,2]
[312324403,1705775449348,-1500.0,0.00035119,2]
[312324404,1705775449357,-150.0,0.00035122,2]
[312324405,1705775449367,-150.0,0.00035126,2]
[312324406,1705775449376,-150.0,0.0003513,2]
[312324407,1705775449385,-1500.0,0.00035131,2]
[312324408,1705775449394,-150.0,0.00035134,2]
[312324409,1705775449403,-150.0,0.0003515,2]
[312324410,1705775449413,-150.0,0.00035155,2]
[312324411,1705775449423,-207.0,0.00035175,22]
[312324412,1705775449433,-150.0,0.00035178,2]
[312324413,1705775449443,-300.0,0.00035191,2]
[312324414,1705775449452,-150.0,0.00035197,2]
[312324415,1705775449462,-300.0,0.00035219,2]
[312324416,1705775449471,-150.0,0.00035233,2]
[312324417,1705775449481,-150.0,0.00035239,2]
[312324418,1705775449490,-150.0,0.00035261,2]
[312324419,1705775449501,-150.0,0.00035271,2]
[312324420,1705775449510,-150.0,0.00035276,2]
[312324421,1705775449520,-150.0,0.00035276,2]
[312324422,1705775449529,-158.12857,0.00035276,2]
[312324423,1705775449539,-150.0,0.00035279,2]
[312324424,1705775449548,-150.0,0.0003528,2]
[312324425,1705775449557,-150.0,0.00035285,2]
[312324426,1705775449567,-150.0,0.00035286,2]
[312324427,1705775449577,-150.0,0.00035304,2]
[312324428,1705775449586,-150.0,0.00035306,2]
[312324429,1705775449596,-194.0,0.00035315,2]
[312324430,1705775449605,-150.0,0.00035326,2]
[312324431,1705775449614,-150.0,0.00035331,2]
[312324432,1705775449624,-150.0,0.00035334,2]
[312324433,1705775449634,-150.0,0.00035336,2]
[312324434,1705775449644,-1000.0,0.00035337,2]
[312324435,1705775449653,-200.0,0.00035346,10]
[312324436,1705775449662,-800.0,0.00035346,15]
[312324437,1705775449671,-150.0,0.00035356,2]
[312324438,1705775449681,-300.0,0.00035357,2]
[312324439,1705775449690,-150.0,0.00035357,2]
[312324440,1705775449704,-150.0,0.00035362,2]
[312324441,1705775449713,-1500.0,0.0003537,2]
[312324442,1705775449722,-150.0,0.00035371,2]
[312324443,1705775449732,-150.0,0.00035375,2]
[312324444,1705775449742,-150.0,0.00035378,2]
[312324445,1705775449751,-1000.0,0.00035386,7]
[312324446,1705775449761,-150.0,0.00035402,2]
[312324447,1705775449771,-150.0,0.00035415,2]
[312324448,1705775449781,-6486.28485786,0.00035431,2]
[312324449,1705775449791,-16729.99776162,0.00035439,4]
[312324450,1705775449800,-257.70962994,0.00035448,2]
[312324451,1705775449809,-150.0,0.00035457,2]
[312324452,1705775449819,-255.8,0.00035472,2]
[312324453,1705775449828,-166.71,0.00035472,2]
[312324454,1705775449837,-254.39,0.00035472,2]
[312324455,1705775449847,-150.0,0.00035479,2]
[312324456,1705775449856,-150.0,0.00035487,2]
[312324457,1705775449866,-150.0,0.00035506,2]
[312324458,1705775449875,-150.0,0.00035514,2]
[312324459,1705775449885,-150.0,0.00035517,2]
[312324460,1705775449894,-157.724934,0.0003553,7]
[312324461,1705775449904,-151.0,0.0003553,7]
[312324462,1705775449913,-151.0,0.0003553,7]
[312324463,1705775449967,-151.0,0.0003553,7]
[312324464,1705775449976,-581.01846,0.0003553,7]
[312324465,1705775449986,-581.01846,0.0003553,7]
[312324466,1705775449997,-393.169667,0.0003553,7]
[312324467,1705775450007,-393.169667,0.0003553,7]
[312324468,1705775450018,-239.062238,0.0003553,7]
[312324469,1705775450028,-208.779874,0.0003553,7]
[312324470,1705775450038,-208.779874,0.0003553,7]
[312324471,1705775450048,-150.0,0.00035538,2]
[312324472,1705775450060,-1500.0,0.0003555,2]
[312324473,1705775450071,-150.0,0.00035555,2]
[312324474,1705775450081,-300.0,0.00035557,2]
[312324475,1705775450092,-150.0,0.00035564,2]
[312324476,1705775450102,-1500.0,0.00035567,2]
[312324477,1705775450113,-400.0,0.0003557,2]
[312324478,1705775450124,-150.0,0.00035582,2]
[312324479,1705775450137,-150.0,0.00035583,2]
[312324480,1705775450148,-150.0,0.00035592,2]
[312324481,1705775450159,-150.0,0.00035595,2]
[312324482,1705775450169,-6565.1594973,0.000356,2]
[312324483,1705775450179,-1374.32,0.00035616,2]
[312324484,1705775450190,-150.0,0.00035616,2]
[312324485,1705775450200,-153.84,0.00035616,2]
[312324486,1705775450212,-17798.96190936,0.00035617,2]
[312324487,1705775450223,-283.71200153,0.00035617,4]
[312324488,1705775450236,-155.40512558,0.00035617,4]
[312324489,1705775450252,-155.7108031,0.00035617,4]
[312324490,1705775450265,-155.39344103,0.00035617,4]
[312324491,1705775450276,-155.0,0.00035617,2]
[312324492,1705775450287,-159.820782,0.00035618,7]
[312324493,1705775450297,-159.820782,0.00035618,7]
[312324494,1705775450310,-2000.0,0.00035618,2]
[312324495,1705775450321,-200.0,0.00035618,2]
[312324496,1705775450331,-150.0,0.00035618,2]
[312324497,1705775450343,-31375.83759417,0.00035623,2]
[312324498,1705775450354,-3262.8182744,0.00035626,2]
[312324499,1705775450364,-197179.9923084,0.00035626,2]
[312324500,1705775450373,-44378.9267094,0.00035626,2]
[312324501,1705775450383,-150.0,0.0003563,2]
[312324502,1705775450393,-523.12132077,0.00035631,4]
[312324503,1705775450404,-300.02,0.00035631,2]
[312324504,1705775450414,-3297.48423607,0.00035631,2]
[312324505,1705775450423,-191.1567856,0.00035632,9]
[312324506,1705775450433,-5000.0,0.00035632,15]
[312324507,1705775450444,-3195.13608794,0.00035632,4]
[312324508,1705775450453,-155.43641126,0.00035632,4]
[312324509,1705775450463,-1466.74907824,0.00035632,5]
[312324510,1705775450472,-300.0,0.00035637,2]
[312324511,1705775450482,-328.12380494,0.00035649,2]
[312324512,1705775450491,-2394.7642354,0.0003565,2]
[312324513,1705775450501,-11196.4426321,0.0003565,2]
[312324514,1705775450510,-150.0,0.0003565,2]
[312324515,1705775450520,-150.0,0.00035666,2]
[312324516,1705775450530,-400.0,0.0003567,2]
[312324517,1705775450540,-17057.5636406,0.00035674,2]
[312324518,1705775450549,-150.0,0.00035678,2]
[312324519,1705775450559,-150.0,0.0003568,2]
[312324520,1705775450569,-1500.0,0.00035686,2]
[312324521,1705775450579,-150.0,0.00035687,2]
[312324522,1705775450589,-150.0,0.00035688,2]
[312324523,1705775450599,-150.0,0.00035694,2]
[312324524,1705775450608,-18938.55111572,0.000357,2]
[312324525,1705775450618,-1511.94,0.000357,7]
[312324526,1705775450627,-3684.83,0.000357,7]
[312324527,1705775450637,-749.22,0.000357,7]
[312324528,1705775450648,-700.2,0.000357,2]
[312324529,1705775450658,-500.0,0.000357,3]
[312324530,1705775450669,-183.774469,0.000357,7]
[312324531,1705775450679,-851.986763,0.000357,2]
[312324532,1705775450690,-500.0,0.000357,2]
[312324533,1705775450705,-150.0,0.00035702,2]